bitfinex/quotes_ETHUSD_20220111
["timestamp","ask_amount","ask_price","bid_price","bid_amount"]
[1641929279824,0.00174211,3228.5,3228.4,11.66662231]
[1641929282624,0.00174211,3228.5,3228.4,11.36662231]
[1641929284473,0.00174211,3228.5,3228.3,1.11833148]
[1641929284675,0.00174211,3228.5,3228.3,1.41833148]
[1641929284872,0.00117369,3228.4,3228.3,1.71833148]
[1641929285074,0.00117369,3228.4,3228.3,5.19262148]
[1641929285275,0.00117369,3228.4,3228.3,6.40282148]
[1641929285676,0.00117369,3228.4,3228.3,6.92876499]
[1641929286077,0.00117369,3228.4,3228.3,9.37876499]
[1641929286477,0.00117369,3228.4,3228.3,6.92876499]
[1641929287076,0.00117369,3228.4,3228.3,12.01166499]
[1641929287724,0.00117369,3228.4,3228.3,11.23737499]
[1641929289526,0.00117369,3228.4,3228.3,12.01156499]
[1641929291379,0.00117369,3228.4,3228.3,13.01156499]
[1641929296522,0.00117369,3228.4,3228.3,7.93737499]
[1641929298572,0.00117369,3228.4,3228.3,8.53737499]
[1641929304626,0.00117369,3228.4,3228.3,6.2931]
[1641929304828,0.00117369,3228.4,3227.7,9.1932]
[1641929305026,0.00117369,3228.4,3228.3,2.6388591]
[1641929305226,0.44817369,3228.4,3228.3,2.6388591]
[1641929305628,0.44817369,3228.4,3228.3,3.11976608]
[1641929306078,0.44817369,3228.4,3228.3,1.60500077]
[1641929306476,0.00117369,3228.4,3228.3,1.60500077]
[1641929307276,0.00117369,3228.4,3228.3,1.90500077]
[1641929308880,0.00117369,3228.4,3227.8,1.17593685]
[1641929309283,0.00117369,3228.4,3227.9,0.00166843]
[1641929310026,0.00117369,3228.4,3228.0,1.55316351]
[1641929310422,0.00117369,3228.4,3228.0,1.85316351]
[1641929310721,0.00117369,3228.4,3228.0,2.55008351]
[1641929310921,0.00117369,3228.4,3228.0,2.25008351]
[1641929311325,0.00117369,3228.4,3228.0,3.93428351]
[1641929312027,0.00117369,3228.4,3228.1,8.0403921]
[1641929312225,0.00117369,3228.4,3228.2,1.1483]
[1641929312423,0.00117369,3228.4,3228.2,1.7483]
[1641929313024,0.00117369,3228.4,3228.2,1.4483]
[1641929315273,1.01279101,3229.3,3229.0,0.84203208]
[1641929315471,0.01279101,3229.3,3229.0,0.84203208]
[1641929315669,0.00572108,3229.2,3229.0,0.84203208]
[1641929315870,0.00572108,3229.2,3228.2,5.1415]
[1641929315871,0.77439,3229.1,3228.2,5.1415]
[1641929316071,0.77954265,3229.1,3228.2,5.1415]
[1641929316271,0.00458423,3229.0,3228.6,0.54205412]
[1641929316673,0.00401581,3228.9,3228.6,0.54205412]
[1641929317071,0.00344738,3228.8,3228.7,0.93675541]
[1641929320820,0.00344738,3228.8,3228.7,6.73675541]
[1641929321675,0.00344738,3228.8,3228.7,10.86712091]
[1641929321877,0.00344738,3228.8,3228.7,8.81089541]
[1641929322075,0.00344738,3228.8,3228.7,14.78129541]
[1641929322277,0.00344738,3228.8,3228.7,18.87928476]
[1641929323574,0.00344738,3228.8,3228.7,19.87928476]
[1641929324378,0.00344738,3228.8,3228.7,18.87928476]
[1641929331776,0.00344738,3228.8,3228.7,19.87928476]
[1641929335121,0.00344738,3228.8,3228.7,18.87928476]
[1641929336769,0.00344738,3228.8,3228.7,19.87928476]
[1641929336973,0.00344738,3228.8,3228.7,20.32628476]
[1641929337176,1.1308,3230.7,3230.5,0.84613217]
[1641929337474,4.36023163,3230.6,3230.5,0.84613217]
[1641929337975,4.36023163,3230.6,3230.5,1.68306138]
[1641929338177,0.01023163,3230.6,3230.5,1.68306138]
[1641929343867,0.01023163,3230.6,3230.5,1.14613217]
[1641929344272,0.01023163,3230.6,3229.9,8.659]
[1641929344471,0.01023163,3230.6,3229.9,5.9438]
[1641929344672,3.81498377,3230.8,3229.9,5.9438]
[1641929344673,0.4566632,3230.5,3229.9,5.9438]
[1641929344873,3.30847444,3230.4,3229.9,5.9438]
[1641929345075,1.0,3230.3,3229.9,5.9438]
[1641929345373,0.00795793,3230.2,3229.9,5.9438]
[1641929345773,0.00738951,3230.1,3230.0,1.07325499]
[1641929345974,0.00738951,3230.1,3229.9,5.9438]
[1641929345975,0.78151951,3230.1,3229.9,5.9438]
[1641929346174,6.39413082,3230.0,3229.2,5.8104]
[1641929346374,7.62219481,3230.0,3229.2,5.8104]
[1641929346581,1.00625266,3229.9,3229.2,5.8104]
[1641929346773,3.61562119,3229.8,3229.2,5.8104]
[1641929346973,3.62130543,3229.8,3229.2,5.8104]
[1641929347175,1.00511582,3229.7,3229.3,0.88088458]
[1641929347423,3.40127678,3229.6,3229.3,0.88088458]
[1641929347623,1.0,3229.7,3229.4,3.67901228]
[1641929347823,0.447,3229.6,3229.4,3.68014912]
[1641929348023,0.447,3229.6,3229.5,0.3]
[1641929348323,1.9955813,3229.6,3229.5,0.3]
[1641929348622,1.9955813,3229.6,3229.4,0.00113684]
[1641929348623,1.9955813,3229.6,3229.4,0.30113684]
[1641929349425,1.22125,3229.6,3229.4,0.30113684]
[1641929351067,1.17125,3229.6,3229.4,0.30113684]
[1641929352870,0.397,3229.6,3229.4,0.30113684]
[1641929354929,0.397,3229.6,3229.4,0.92043684]
[1641929356731,0.397,3229.6,3229.4,0.30113684]
[1641929360673,1.22114,3230.1,3229.4,0.30113684]
[1641929360873,0.447,3230.1,3229.8,1.41176411]
[1641929361074,1.0,3230.3,3229.8,1.41176411]
[1641929361075,0.0022737,3230.0,3229.8,1.41176411]
[1641929361574,0.00170527,3229.9,3229.8,1.41176411]
[1641929361975,0.00341054,3229.9,3229.8,1.41176411]
[1641929363821,0.00341054,3229.9,3229.4,0.30113684]
[1641929364025,0.00341054,3229.9,3229.4,0.00113684]
[1641929364225,0.38156457,3229.6,3229.4,0.00113684]
[1641929364424,0.38156457,3229.6,3229.2,5.8104]
[1641929364425,3.97133,3229.5,3229.3,0.00170527]
[1641929364829,1.0,3229.4,3229.3,0.00170527]
[1641929365029,1.447,3229.4,3229.3,0.00170527]
[1641929365432,0.447,3229.4,3229.3,0.00170527]
[1641929366379,0.00113685,3229.8,3229.4,2.95]
[1641929367179,0.00113685,3229.8,3229.5,0.61411473]
[1641929375475,0.00113685,3229.8,3229.5,6.88051473]
[1641929375873,0.00113685,3229.8,3229.5,7.18051473]
[1641929376277,0.00113685,3229.8,3229.6,2.94109]
[1641929376775,0.00113685,3229.8,3229.7,7.926]
[1641929376974,0.00113685,3229.8,3229.7,8.226]
[1641929377620,0.00113685,3229.8,3229.7,11.47962747]
[1641929378616,0.00113685,3229.8,3229.7,12.39972651]
[1641929379215,0.00113685,3229.8,3229.7,9.14609904]
[1641929379419,0.00113685,3229.8,3229.7,12.28995428]
[1641929379619,3.685e-05,3229.8,3229.7,12.28995428]
[1641929379818,3.685e-05,3229.8,3229.7,11.36985524]
[1641929380021,3.685e-05,3229.8,3229.7,12.36985524]
[1641929380227,0.30754035,3231.3,3229.8,6.5]
[1641929380422,0.30754035,3231.3,3230.7,0.61897]
[1641929380620,0.30754035,3231.3,3230.7,7.4414]
[1641929380621,0.00795793,3231.2,3230.7,7.4414]
[1641929381064,0.0073895,3231.1,3230.7,7.4414]
[1641929381467,0.00682108,3231.0,3230.9,4.5007163]
[1641929381868,0.00682108,3231.0,3230.9,2.4507163]
[1641929383073,0.00682108,3231.0,3230.9,5.0007163]
[1641929384373,1.0,3231.9,3231.8,1.14535323]
[1641929384575,1.55968305,3232.4,3231.8,1.94805323]
[1641929384576,1.99444,3232.4,3231.8,1.94805323]
[1641929385225,1.99444,3232.4,3232.3,1.12916682]
[1641929385624,0.45495793,3232.4,3232.3,1.71257711]
[1641929386025,4.35495793,3232.4,3232.3,1.71257711]
[1641929386724,4.35495793,3232.4,3231.9,5.844]
[1641929387028,0.78104951,3232.3,3231.9,5.844]
[1641929387424,0.00682108,3232.2,3231.9,6.144]
[1641929387628,0.00682108,3232.2,3232.1,0.45360208]
[1641929387827,2.85625266,3232.1,3231.9,6.144]
[1641929388139,6.80268424,3232.0,3231.0,3.8193]
[1641929388329,6.55268424,3232.0,3231.1,5.681]
[1641929388570,0.00511581,3231.9,3231.1,5.681]
[1641929388969,0.00454739,3231.8,3231.1,5.681]
[1641929389368,6.547,3232.0,3231.1,5.681]
[1641929389369,0.00397896,3231.7,3231.1,5.681]
[1641929389772,0.00341054,3231.6,3231.1,5.681]
[1641929390178,0.00284212,3231.5,3231.1,5.681]
[1641929390577,0.00227369,3231.4,3231.1,5.981]
[1641929390978,0.00170527,3231.3,3231.1,5.981]
[1641929391376,0.00113685,3231.2,3231.1,5.981]
[1641929393120,0.447,3231.7,3231.3,0.45164861]
[1641929393520,0.44984211,3231.7,3231.3,1.65004176]
[1641929394528,0.00284211,3231.7,3231.3,2.26898176]
[1641929397189,0.00284211,3231.7,3231.3,0.61894]
[1641929397397,0.44984211,3231.7,3231.1,5.681]
[1641929397592,1.22363211,3231.7,3231.1,5.681]
[1641929397793,1.99776211,3231.7,3231.1,5.681]
[1641929397995,2.99776211,3231.7,3231.1,5.681]
[1641929398392,1.99776211,3231.7,3230.7,0.58822205]
[1641929398794,1.99776211,3231.7,3230.8,0.0022737]
[1641929398994,0.77393,3231.6,3230.8,0.0022737]
[1641929399193,0.773944,3231.4,3230.8,0.0022737]
[1641929399395,0.447,3231.3,3230.8,0.0022737]
[1641929402334,0.77391,3231.2,3230.8,0.0022737]
[1641929402534,0.447,3231.1,3230.8,0.0022737]
[1641929402734,1.0,3231.4,3230.8,0.0022737]
[1641929402735,0.447,3231.0,3230.8,0.0022737]
[1641929402933,0.447,3230.9,3230.8,0.0022737]
[1641929403135,3.497,3230.9,3230.8,0.0022737]
[1641929403435,0.447,3230.9,3230.8,0.0022737]
[1641929405379,1.4078,3230.9,3230.8,0.0022737]
[1641929405580,4.69537095,3230.9,3230.8,0.0022737]
[1641929405778,6.5,3230.8,3229.7,5.7653]
[1641929405986,0.7742817,3230.3,3229.7,5.7653]
[1641929406189,3.87172,3230.1,3229.7,5.7653]
[1641929406381,0.77436,3229.9,3229.1,6.61581869]
[1641929406589,0.447,3229.8,3229.1,5.11195618]
[1641929406980,7.332,3229.8,3229.1,5.11195618]
[1641929407180,0.7743799,3229.6,3229.1,5.11195618]
[1641929407429,1.22151,3229.5,3229.1,5.11195618]
[1641929407727,2.22151,3229.5,3229.2,0.00909477]
[1641929407929,2.99593,3229.5,3229.2,0.00909477]
[1641929409125,0.7745001,3229.4,3229.2,0.00909477]
[1641929409428,5.44476604,3229.3,3229.2,0.00909477]
[1641929409630,6.44476604,3229.3,3229.2,0.00909477]
[1641929412076,1.89476604,3229.3,3229.2,0.00909477]
[1641929412480,0.89476604,3229.3,3229.2,0.00909477]
[1641929412676,5.14476604,3229.3,3229.2,0.00909477]
[1641929412878,4.14476604,3229.3,3229.2,0.00909477]
[1641929413175,5.14476604,3229.3,3229.2,0.00909477]
[1641929414931,5.59253208,3229.3,3229.2,0.00909477]
[1641929415329,8.39857205,3229.3,3229.2,0.00909477]
[1641929415531,9.12497205,3229.3,3229.2,0.00909477]
[1641929416543,10.00307205,3229.3,3229.2,0.00909477]
[1641929416738,10.00307205,3229.3,3229.1,5.11195618]
[1641929416739,6.5,3229.2,3229.1,5.11195618]
[1641929416935,12.5784254,3229.2,3229.1,5.11195618]
[1641929417137,12.5784254,3229.2,3227.8,6.0529]
[1641929417138,18.11,3229.1,3227.8,6.0529]
[1641929417339,0.7747426,3228.3,3227.8,6.0529]
[1641929417536,3.85362443,3228.2,3227.9,0.00738951]
[1641929417738,18.11,3228.1,3227.9,0.00738951]
[1641929417939,18.11,3228.1,3227.3,5.51930005]
[1641929417940,8.17725531,3228.0,3227.3,5.51930005]
[1641929418136,9.17725531,3228.0,3227.4,0.01023162]
[1641929418335,9.47725531,3228.0,3227.4,0.01023162]
[1641929418775,18.11,3227.9,3227.4,0.01023162]
[1641929419080,5.47725531,3228.0,3227.4,0.01023162]
[1641929419081,23.40168389,3227.8,3227.4,1.0973913]
[1641929419276,1.22187,3227.7,3227.4,1.0973913]
[1641929419477,0.447,3227.7,3227.5,0.0096632]
[1641929420176,0.44776604,3227.6,3227.5,0.0096632]
[1641929420377,0.89476604,3227.6,3227.5,0.0096632]
[1641929420780,0.89476604,3227.6,3227.5,0.54174467]
[1641929422191,0.44776604,3227.6,3227.5,0.54174467]
[1641929422731,0.89553208,3227.6,3227.5,3.74174467]
[1641929424938,0.76729482,3228.0,3227.6,6.5]
[1641929425142,0.447,3229.2,3227.6,6.5]
[1641929425340,0.447,3229.2,3229.0,1.09961149]
[1641929425539,0.447,3229.2,3227.7,7.91744896]
[1641929425540,0.447,3229.2,3227.8,3.929]
[1641929425742,0.447,3229.2,3229.0,0.00113685]
[1641929426584,4.1,3229.1,3228.9,0.00170527]
[1641929426888,5.3937119,3229.0,3228.5,0.00397897]
[1641929427084,5.3937119,3229.0,3228.5,5.66357897]
[1641929427285,0.3437119,3229.0,3228.5,5.66357897]
[1641929427488,0.3437119,3229.0,3228.9,0.97669657]
[1641929427885,0.3437119,3229.0,3228.9,0.97840184]
[1641929428987,0.3437119,3229.0,3228.9,1.57703083]
[1641929429191,0.447,3230.1,3229.0,6.1]
[1641929429393,5.7203,3230.2,3230.0,0.86332763]
[1641929429587,2.42585314,3230.5,3230.0,0.86332763]
[1641929429832,0.447,3230.6,3230.0,0.86332763]
[1641929430041,0.00568423,3230.2,3229.2,4.9534]
[1641929430240,1.5486743,3230.1,3229.2,4.9534]
[1641929430437,0.447,3230.0,3229.2,3.7621]
[1641929430639,0.75154739,3230.0,3229.2,3.7621]
[1641929430838,0.00397896,3229.9,3229.2,3.7621]
[1641929431037,0.447,3229.8,3229.2,3.7621]
[1641929431239,0.45041054,3229.8,3229.2,3.7621]
[1641929431439,0.77433,3229.6,3229.2,3.7621]
[1641929431638,0.77433,3229.6,3229.0,1.12182889]
[1641929431841,0.00170527,3229.5,3229.0,1.12182889]
[1641929432244,0.00113685,3229.4,3228.9,0.00170527]
[1641929432439,0.77551835,3229.4,3228.9,0.00170527]
[1641929432642,0.7744,3229.2,3228.9,0.00170527]
[1641929432948,0.7744,3229.2,3228.8,0.0022737]
[1641929432949,0.79066174,3229.1,3228.8,0.0022737]
[1641929433143,20.44976174,3229.1,3228.5,5.6118737]
[1641929433581,6.5,3228.9,3228.5,5.6118737]
[1641929433776,1.99636,3228.8,3228.5,5.6118737]
[1641929433975,0.77468,3228.7,3228.5,5.6118737]
[1641929434175,6.897,3228.6,3228.5,5.6118737]
[1641929434581,7.897,3228.6,3228.5,5.6118737]
[1641929434980,4.5,3228.5,3228.1,4.8696]
[1641929435189,1.99648,3228.4,3227.1,0.3512]
[1641929435380,0.77478,3227.9,3227.1,0.3512]
[1641929435579,0.77478,3227.9,3227.0,0.9664382]
[1641929435580,0.447,3227.8,3227.0,0.9664382]
[1641929435984,0.447,3227.8,3227.1,0.00852635]
[1641929436381,0.77493,3227.4,3227.0,0.9664382]
[1641929436579,0.48240908,3227.3,3227.0,0.9664382]
[1641929436880,6.35,3227.0,3225.6,12.165405]
[1641929437084,0.447,3226.9,3225.6,8.258205]
[1641929437332,0.447,3226.9,3225.7,0.85035694]
[1641929437333,3.29705864,3226.8,3225.7,0.85035694]
[1641929437535,1.447,3226.7,3225.7,1.15035694]
[1641929437735,2.9838618,3226.6,3225.7,1.15035694]
[1641929437936,3.31022071,3226.6,3225.7,1.15035694]
[1641929438137,0.7750743,3226.4,3225.7,1.15035694]
[1641929438338,5.20582788,3226.4,3225.7,1.15035694]
[1641929438543,0.00341054,3226.3,3225.7,1.15035694]
[1641929438942,0.00284211,3226.2,3225.7,1.15035694]
[1641929439348,0.00227369,3226.1,3225.7,1.15035694]
[1641929439746,0.00170527,3226.0,3225.7,1.15035694]
[1641929440143,0.00113684,3225.9,3225.7,1.15035694]
[1641929440545,0.77952738,3226.5,3225.7,1.15035694]
[1641929440944,0.00397896,3226.4,3226.2,0.81416746]
[1641929441211,0.00397896,3226.4,3225.7,0.3]
[1641929441407,0.00341054,3226.3,3225.3,3.73009769]
[1641929441609,0.00341054,3226.3,3225.3,4.03009769]
[1641929441908,0.00284211,3226.2,3225.4,0.00170527]
[1641929442208,0.00227369,3226.1,3225.5,1.07997795]
[1641929442609,0.00170527,3226.0,3225.5,1.37997795]
[1641929443008,0.447,3226.6,3225.5,1.37997795]
[1641929443009,0.00113684,3225.9,3225.5,1.37997795]
[1641929443410,0.00454738,3226.5,3225.6,2.64055085]
[1641929443611,0.77499,3226.2,3226.0,1.13110189]
[1641929443811,0.77499,3226.2,3225.6,2.64055085]
[1641929444010,0.00227369,3226.1,3225.6,2.64055085]
[1641929444410,0.00170527,3226.0,3225.6,2.64055085]
[1641929444613,0.77673527,3226.0,3225.6,2.64055085]
[1641929444831,0.00113684,3225.9,3225.6,3.79500919]
[1641929445041,0.00113684,3225.9,3225.6,2.64055085]
[1641929445235,0.00113684,3225.9,3225.5,0.3]
[1641929445433,0.00113684,3225.9,3225.3,3.35180296]
[1641929445635,0.77736369,3225.8,3225.3,3.35180296]
[1641929446036,0.00170527,3225.7,3225.3,3.35180296]
[1641929446434,0.00113684,3225.6,3225.3,3.35180296]
[1641929446834,0.00170527,3225.7,3225.3,3.35180296]
[1641929447238,0.00113684,3225.6,3225.3,3.65180296]
[1641929447540,0.00170527,3225.7,3225.3,3.65180296]
[1641929447934,0.00113684,3225.6,3225.3,3.65180296]
[1641929448336,0.00170527,3225.7,3225.3,3.65180296]
[1641929448785,0.77627684,3225.6,3225.3,3.65180296]
[1641929449184,0.77514,3225.6,3225.3,0.3]
[1641929449786,0.77509,3225.8,3225.3,0.3]
[1641929450193,0.00170527,3225.7,3225.4,2.64086541]
[1641929450587,0.00113684,3225.6,3225.4,2.64086541]
[1641929450989,0.00170527,3225.7,3225.4,2.64086541]
[1641929451388,0.77509,3225.8,3225.4,2.64086541]
[1641929451389,0.00113684,3225.6,3225.4,2.64086541]
[1641929451788,0.00170527,3225.7,3225.4,2.64086541]
[1641929452189,0.00113684,3225.6,3225.4,2.64086541]
[1641929452430,0.77628684,3225.6,3225.4,2.64086541]
[1641929452628,0.77515,3225.6,3225.4,2.64086541]
[1641929453430,4.897,3225.5,3225.4,2.64086541]
[1641929454029,0.447,3225.5,3225.4,2.64086541]
[1641929454728,0.447,3225.5,3225.0,2.64086541]
[1641929454729,0.7753,3225.3,3225.0,2.64086541]
[1641929454935,0.447,3225.5,3225.0,2.64086541]
[1641929455137,0.00170527,3225.7,3225.1,0.93853445]
[1641929455533,0.00113684,3225.6,3225.2,0.00113685]
[1641929455834,0.00170527,3225.7,3225.2,0.00113685]
[1641929456279,0.00113684,3225.6,3225.2,0.00113685]
[1641929456779,0.00170527,3225.7,3225.2,0.00113685]
[1641929457185,0.00113684,3225.6,3225.5,1.12003451]
[1641929457381,0.00113684,3225.6,3225.0,0.0022737]
[1641929457779,0.00113684,3225.6,3225.1,2.64104675]
[1641929458181,0.00113684,3225.6,3225.2,0.00113685]
[1641929459083,0.00113684,3225.6,3225.4,0.82634194]
[1641929459842,0.00113684,3225.6,3225.2,0.00113685]
[1641929460437,0.00113684,3225.6,3225.0,0.0022737]
[1641929460645,0.00113684,3225.6,3225.1,1.08351889]
[1641929461037,0.7753,3225.5,3225.2,0.00113685]
[1641929461437,0.7753,3225.5,3225.0,0.0022737]
[1641929462041,0.00113684,3225.6,3225.1,0.9947768]
[1641929462441,0.00113684,3225.6,3225.2,0.00113685]
[1641929468037,0.77524,3225.5,3225.2,0.00113685]
[1641929468640,0.77524,3225.5,3225.0,0.0022737]
[1641929468840,0.00113684,3225.6,3225.0,0.0022737]
[1641929469442,0.00113684,3225.6,3225.0,0.97475763]
[1641929469844,0.00113684,3225.6,3225.0,0.0022737]
[1641929470042,1.55172684,3225.6,3225.0,0.0022737]
[1641929470241,0.00113684,3225.6,3225.0,0.0022737]
[1641929471093,0.00113684,3225.6,3225.0,1.0467897]
[1641929472394,0.77524,3225.5,3225.0,1.0467897]
[1641929472692,0.00113684,3225.6,3225.0,1.0467897]
[1641929474098,0.77523,3225.5,3225.0,1.0467897]
[1641929474930,0.77523,3225.5,3225.0,0.0022737]
[1641929475141,0.77528,3225.3,3225.0,0.0022737]
[1641929475330,0.447,3225.2,3225.0,0.0022737]
[1641929475734,0.447,3225.2,3224.7,0.00397897]
[1641929475931,0.7754629,3225.0,3224.7,0.00397897]
[1641929476132,1.22248,3224.9,3224.2,0.84603891]
[1641929476442,1.22248,3224.9,3224.3,0.00625266]
[1641929476635,2.99817,3224.9,3224.3,0.00625266]
[1641929476836,2.99817,3224.9,3224.2,0.00682108]
[1641929477041,0.7755059,3224.7,3224.2,0.00682108]
[1641929477337,1.2225059,3224.7,3224.2,0.00682108]
[1641929477536,2.2225059,3224.7,3224.2,0.00682108]
[1641929477936,1.2225059,3224.7,3224.2,0.00682108]
[1641929478240,3.58542698,3224.6,3224.2,0.00682108]
[1641929478437,1.2225579,3224.5,3224.2,0.00682108]
[1641929478676,2.2225579,3224.5,3224.2,0.00682108]
[1641929478874,5.08170753,3224.5,3224.2,0.00682108]
[1641929479080,2.2225579,3224.5,3224.2,0.00682108]
[1641929479276,0.77559,3224.4,3224.2,0.00682108]
[1641929479476,3.147,3224.3,3224.2,0.00682108]
[1641929479878,1.447,3224.3,3224.2,0.00682108]
[1641929480080,0.447,3224.3,3224.2,0.00682108]
[1641929480984,8.29617132,3224.3,3224.2,0.00682108]
[1641929481185,5.347,3224.3,3224.2,0.00682108]
[1641929481383,8.0718,3224.3,3224.2,0.00682108]
[1641929481587,8.0718,3224.3,3224.1,0.5194382]
[1641929481588,6.5,3224.2,3224.1,0.5194382]
[1641929481781,9.4985517,3224.2,3224.1,0.5194382]
[1641929481981,10.2249517,3224.2,3224.1,0.5194382]
[1641929482203,6.5,3224.1,3223.0,3.8082]
[1641929482435,6.032,3224.0,3223.0,3.8082]
[1641929482636,7.6016,3224.0,3223.1,0.00625266]
[1641929483233,0.77587,3223.6,3223.1,0.00625266]
[1641929483435,1.2228238,3223.5,3223.1,0.00625266]
[1641929483635,1.4938238,3223.5,3223.1,2.64879697]
[1641929483835,2.4938238,3223.5,3223.1,2.64254431]
[1641929484035,6.75,3223.4,3222.6,3.96307068]
[1641929484340,6.75,3223.4,3222.7,0.00284212]
[1641929484341,1.22289,3223.3,3222.7,0.00284212]
[1641929484534,1.22289,3223.3,3222.8,0.87135561]
[1641929484535,2.22289,3223.3,3222.8,0.87135561]
[1641929484738,1.447,3223.3,3222.8,0.87135561]
[1641929484936,1.447,3223.3,3222.9,0.00170527]
[1641929485145,0.447,3223.3,3222.9,0.00170527]
[1641929485337,1.22279,3223.3,3222.9,0.00170527]
[1641929485536,2.22279,3223.3,3222.5,0.00397896]
[1641929486184,2.22279,3223.3,3222.7,0.981889]
[1641929486588,2.22279,3223.3,3222.8,0.00227369]
[1641929486787,4.75,3223.2,3222.7,0.83416269]
[1641929487009,0.77595,3222.9,3222.7,0.83416269]
[1641929487188,0.77595,3222.9,3222.4,3.763]
[1641929487605,0.77595,3222.9,3222.5,0.00170527]
[1641929488193,0.77595,3222.9,3222.5,0.85399217]
[1641929488692,0.776,3222.6,3222.4,3.71413685]
[1641929488891,0.776,3222.6,3221.9,1.1674]
[1641929489090,0.776,3222.6,3221.8,3.96307068]
[1641929489290,0.776,3222.6,3222.0,0.00341054]
[1641929489928,0.776,3222.6,3221.9,1.08982694]
[1641929490829,1.0,3222.7,3221.9,1.08982694]
[1641929491028,0.447,3222.8,3221.9,1.08982694]
[1641929491631,0.447,3222.8,3221.9,2.33116694]
[1641929492036,0.447,3222.8,3222.4,1.10908144]
[1641929492236,0.447,3222.8,3222.4,1.05908144]
[1641929492530,0.447,3222.8,3221.9,1.24134]
[1641929492734,0.447,3222.8,3221.8,1.21514739]
[1641929493134,0.447,3222.8,3221.9,0.62472896]
[1641929493331,0.447,3222.8,3221.9,0.00397896]
[1641929493908,0.447,3222.8,3222.2,0.9019829]
[1641929494111,0.77597,3222.5,3222.2,0.9019829]
[1641929494312,0.77597,3222.5,3222.3,0.00170527]
[1641929494717,0.77597,3222.5,3221.9,0.00397896]
[1641929494913,0.77597,3222.5,3221.8,0.00454739]
[1641929495413,0.77597,3222.5,3222.0,0.9352964]
[1641929495614,1.77594,3222.7,3222.0,0.9352964]
[1641929495814,1.77594,3222.7,3222.1,0.00284212]
[1641929496014,0.77594,3222.7,3222.1,0.00284212]
[1641929496413,0.77594,3222.7,3222.0,1.50889852]
[1641929496613,0.00284212,3222.6,3222.0,1.50889852]
[1641929497015,0.0022737,3222.5,3222.0,0.88813852]
[1641929497220,0.0022737,3222.5,3222.0,1.18813852]
[1641929497434,1.0,3223.0,3222.2,1.2413]
[1641929497435,0.00170527,3222.4,3222.2,1.2413]
[1641929497838,0.00113685,3222.3,3222.2,5.0988]
[1641929498035,0.00113685,3222.3,3222.2,5.3988]
[1641929500641,0.00113685,3222.3,3222.2,11.8988]
[1641929500844,3.685e-05,3222.3,3222.2,11.91130511]
[1641929501089,3.685e-05,3222.3,3222.2,30.50430511]
[1641929501277,3.685e-05,3222.3,3222.2,31.86240614]
[1641929501482,2.82976103,3224.4,3223.4,0.62045]
[1641929501682,0.7755,3224.6,3223.4,4.9459]
[1641929501882,0.01193689,3224.4,3223.5,3.9867]
[1641929502283,0.01136847,3224.3,3223.7,1.09352157]
[1641929502685,0.01080005,3224.2,3223.7,1.09352157]
[1641929503083,0.01023162,3224.1,3223.7,1.09352157]
[1641929503581,0.0096632,3224.0,3223.7,1.09352157]
[1641929503784,0.0096632,3224.0,3223.6,0.62043]
[1641929503987,0.00909477,3223.9,3223.6,0.62043]
[1641929504383,0.77556,3224.3,3223.6,0.62043]
[1641929504384,0.00852635,3223.8,3223.6,0.62043]
[1641929504585,0.00852635,3223.8,3223.5,3.9867]
[1641929504833,0.00852635,3223.8,3223.0,5.14037]
[1641929504834,0.00795793,3223.7,3223.0,1.01579728]
[1641929505039,0.447,3223.6,3223.0,1.01579728]
[1641929505236,0.4543895,3223.6,3223.0,1.01579728]
[1641929505432,0.00682108,3223.5,3223.0,1.01579728]
[1641929505633,0.45382108,3223.5,3223.0,1.01579728]
[1641929505834,0.00625266,3223.4,3223.0,1.01579728]
[1641929506035,3.07850596,3223.4,3222.8,3.6645]
[1641929506235,0.00568423,3223.3,3222.8,3.6645]
[1641929506435,2.22856623,3223.3,3222.8,3.6645]
[1641929506634,2.97661768,3223.2,3222.8,3.6645]
[1641929506837,0.447,3223.1,3222.8,3.6645]
[1641929507037,1.45154739,3223.1,3222.8,3.6645]
[1641929507336,0.00397896,3223.0,3222.8,3.6645]
[1641929507539,0.00397896,3223.0,3222.5,6.1295]
[1641929507736,0.00341054,3222.9,3222.5,4.9968]
[1641929508137,0.00284212,3222.8,3222.4,0.81851683]
[1641929508587,0.77822369,3222.7,3222.4,0.81851683]
[1641929508984,0.00170527,3222.6,3222.4,0.81851683]
[1641929509385,0.00113685,3222.5,3222.4,0.81851683]
[1641929509785,0.00113685,3222.5,3222.2,3.9169]
[1641929510191,0.00113685,3222.5,3221.8,3.9426]
[1641929510192,0.447,3222.4,3221.7,6.11]
[1641929510385,3.25775865,3222.3,3221.7,6.11]
[1641929510585,3.70475865,3222.3,3221.8,0.00284212]
[1641929510786,0.77613,3222.1,3221.8,0.00284212]
[1641929510985,2.86926848,3222.0,3221.8,0.00284212]
[1641929511185,2.86926848,3222.0,3221.6,0.00397896]
[1641929511386,1.0,3221.9,3221.6,0.00397896]
[1641929512187,1.0,3222.1,3221.6,0.00397896]
[1641929512435,2.84348587,3222.0,3221.6,0.00397896]
[1641929512632,1.0,3221.9,3221.6,0.00397896]
[1641929512941,0.447,3222.0,3221.6,0.00397896]
[1641929513540,0.77607,3222.2,3221.6,0.30397896]
[1641929513746,0.00113685,3222.5,3222.4,0.94119319]
[1641929514138,0.00113685,3222.5,3222.4,1.24119319]
[1641929514538,0.00113685,3222.5,3222.4,5.74119319]
[1641929515639,0.00113685,3222.5,3222.4,1.24119319]
[1641929516484,0.00113685,3222.5,3222.4,5.29119319]
[1641929517785,0.00113685,3222.5,3222.4,4.99119319]
[1641929518386,0.00113685,3222.5,3222.4,7.6341903]
[1641929518986,0.00113685,3222.5,3222.4,7.5841903]
[1641929520440,0.00113685,3222.5,3222.4,7.8841903]
[1641929520646,0.00113685,3222.5,3222.4,11.04761596]
[1641929520837,0.00113685,3222.5,3222.4,10.74761596]
[1641929521441,0.00113685,3222.5,3222.4,11.04761596]
[1641929521639,0.00113685,3222.5,3222.4,11.34761596]
[1641929522241,1.2226217,3224.4,3222.5,6.5]
[1641929522445,5.7956,3224.7,3223.7,0.77555]
[1641929522643,0.00909477,3224.1,3223.7,0.77555]
[1641929523042,0.00852635,3224.0,3223.8,0.3]
[1641929523442,0.00795792,3223.9,3223.8,0.92042]
[1641929523683,0.00795792,3223.9,3223.8,11.53108288]
[1641929524086,5.792e-05,3224.3,3223.9,6.5]
[1641929524286,5.792e-05,3224.3,3224.0,3.84334078]